bitfinex/quotes_BTCUSD_20251113
["timestamp","ask_amount","ask_price","bid_price","bid_amount"]
[1763052541564,0.002,101030.0,101020.0,1.29895111]
[1763052542639,0.001,101030.0,101020.0,1.29895111]
[1763052543115,0.02,101040.0,101030.0,0.197961]
[1763052543380,0.11816915,101070.0,101060.0,0.19790223]
[1763052543575,0.02,101070.0,101060.0,0.28958223]
[1763052543730,0.21788265,101070.0,101060.0,0.28958223]
[1763052544139,0.21788265,101070.0,101060.0,0.09168]
[1763052544348,0.25733251,101070.0,101060.0,0.03723]
[1763052544702,0.25733251,101070.0,101060.0,0.23513223]
[1763052545124,0.19790223,101060.0,101050.0,0.52092182]
[1763052545321,0.21790223,101060.0,101050.0,0.52092182]
[1763052545523,0.02,101060.0,101050.0,0.65631182]
[1763052545767,0.21790223,101060.0,101050.0,0.65631182]
[1763052545972,0.21790223,101060.0,101050.0,0.52092182]
[1763052546179,0.21790223,101060.0,101050.0,0.323]
[1763052546382,0.02,101060.0,101050.0,0.65820182]
[1763052546748,0.02,101060.0,101050.0,1.30027757]
[1763052546951,0.02013986,101070.0,101060.0,0.52090223]
[1763052547179,0.02013986,101070.0,101060.0,0.65818223]
[1763052547719,0.00013986,101070.0,101060.0,1.30025798]
[1763052547847,0.00013986,101070.0,101060.0,1.36338649]
[1763052548051,0.00013986,101070.0,101060.0,0.72131074]
[1763052548258,0.00013986,101070.0,101060.0,1.36338649]
[1763052549576,0.12752833,101110.0,101090.0,0.19782743]
[1763052549892,0.02,101090.0,101080.0,0.53072476]
[1763052550336,0.02,101090.0,101080.0,0.62470476]
[1763052550781,0.02,101090.0,101080.0,1.39264925]
[1763052551255,0.02,101090.0,101080.0,1.26003078]
[1763052551474,0.02025138,101090.0,101080.0,1.26003078]
[1763052551693,0.02025138,101090.0,101080.0,0.7505735]
[1763052551913,0.02025138,101090.0,101080.0,1.26003078]
[1763052552389,0.02025138,101090.0,101080.0,1.26103078]
[1763052552615,0.00025138,101090.0,101080.0,1.26203078]
[1763052553519,0.21809488,101090.0,101080.0,0.41898]
[1763052553736,0.02025138,101090.0,101080.0,0.69929307]
[1763052555040,0.00025138,101090.0,101080.0,1.20875035]
[1763052555888,0.00025138,101090.0,101080.0,0.69929307]
[1763052556106,0.00025138,101090.0,101080.0,1.20875035]
[1763052556984,0.00025138,101090.0,101080.0,1.76162637]
[1763052557248,0.00025138,101090.0,101080.0,1.25216909]
[1763052557450,0.00025138,101090.0,101080.0,0.74271181]
[1763052557677,0.00025138,101090.0,101080.0,1.76162637]
[1763052558326,0.00025138,101090.0,101080.0,1.25216909]
[1763052560075,0.00025138,101090.0,101080.0,0.41971181]
[1763052560494,0.00025138,101090.0,101080.0,0.69929307]
[1763052560735,0.21809488,101090.0,101080.0,0.37629307]
[1763052560944,0.21809488,101090.0,101080.0,0.69929307]
[1763052561157,0.2596868,101090.0,101080.0,0.09598]
[1763052561588,0.2794968,101090.0,101080.0,0.04115]
[1763052561798,0.45402595,101090.0,101080.0,0.002]
[1763052562292,0.13823053,101090.0,101080.0,0.19786307]
[1763052562494,0.11842053,101090.0,101080.0,0.65814307]
[1763052563373,0.11942053,101090.0,101080.0,0.65814307]
[1763052563594,0.02125138,101090.0,101080.0,1.16760035]
[1763052563874,0.00125138,101090.0,101080.0,1.16760035]
[1763052564111,0.00125138,101090.0,101080.0,1.21101909]
[1763052564559,0.00025138,101090.0,101080.0,1.72047637]
[1763052564779,0.00025138,101090.0,101080.0,1.86617637]
[1763052565002,0.00025138,101090.0,101080.0,1.88163754]
[1763052565482,1e-08,101090.0,101080.0,1.73593754]
[1763052565715,0.00046667,101110.0,101100.0,0.24124267]
[1763052565937,0.00046667,101110.0,101100.0,1.12852995]
[1763052566218,0.00046667,101110.0,101100.0,1.21097995]
[1763052566670,0.00046667,101110.0,101100.0,1.2262998]
[1763052568569,0.00046667,101110.0,101100.0,1.2282998]
[1763052569007,0.00046667,101110.0,101100.0,1.2312998]
[1763052570714,0.00046667,101110.0,101100.0,1.2282998]
[1763052570902,0.00046667,101110.0,101100.0,1.2262998]
[1763052571157,0.00046667,101110.0,101100.0,1.2292998]
[1763052571370,0.00096932,101110.0,101100.0,1.2292998]
[1763052572695,0.0002,101130.0,101110.0,0.7227431]
[1763052572916,0.00033988,101130.0,101120.0,1.69138852]
[1763052573139,0.00033988,101130.0,101120.0,1.786858]
[1763052573349,0.00024988,101130.0,101120.0,1.786858]
[1763052574245,0.0002,101140.0,101120.0,1.786858]
[1763052574246,0.0002,101140.0,101130.0,1.03022253]
[1763052574456,0.0002,101140.0,101130.0,1.19240253]
[1763052575307,0.0002,101140.0,101130.0,0.68694525]
[1763052575530,0.0002,101140.0,101130.0,1.19640253]
[1763052575751,0.0032,101150.0,101140.0,1.03020297]
[1763052575975,0.0032,101150.0,101140.0,1.16098297]
[1763052576222,0.0032,101150.0,101140.0,1.17682236]
[1763052576467,0.0032,101150.0,101140.0,0.66736508]
[1763052576668,0.0032,101150.0,101140.0,1.2202411]
[1763052578463,0.0032,101150.0,101140.0,1.2222411]
[1763052579123,0.00420481,101150.0,101140.0,1.2222411]
[1763052579575,0.0002,101160.0,101150.0,0.52072614]
[1763052579783,0.0002,101160.0,101150.0,1.34581342]
[1763052580205,0.00045112,101160.0,101150.0,1.34581342]
[1763052580844,0.00045112,101160.0,101150.0,1.39023216]
[1763052582608,0.00045112,101160.0,101150.0,1.34681342]
[1763052585410,0.02045112,101160.0,101150.0,1.34681342]
[1763052585618,0.00045112,101160.0,101150.0,1.34681342]
[1763052586261,0.02045112,101160.0,101150.0,0.83735614]
[1763052586501,0.02045112,101160.0,101150.0,1.34681342]
[1763052587566,0.00045112,101160.0,101150.0,1.34681342]
[1763052588238,0.26803772,101160.0,101150.0,0.324]
[1763052588457,0.26803772,101160.0,101150.0,0.001]
[1763052588667,0.21815772,101160.0,101150.0,0.34640614]
[1763052588878,0.21815772,101160.0,101150.0,0.26914614]
[1763052589146,0.21815772,101160.0,101150.0,0.26814614]
[1763052589349,0.21915772,101160.0,101150.0,0.26814614]
[1763052589835,0.02145112,101160.0,101150.0,0.34540614]
[1763052589988,0.02145112,101160.0,101150.0,0.26814614]
[1763052590210,0.22015772,101160.0,101150.0,0.26814614]
[1763052590401,0.02245112,101160.0,101150.0,0.34540614]
[1763052591957,0.00245112,101160.0,101150.0,0.66840614]
[1763052592157,0.00245112,101160.0,101150.0,1.17786342]
[1763052592768,0.00245112,101160.0,101150.0,0.66840614]
[1763052592996,0.00245112,101160.0,101150.0,1.17786342]
[1763052593200,0.00145112,101160.0,101150.0,1.17786342]
[1763052593403,0.00045112,101160.0,101150.0,1.17786342]
[1763052594043,0.19815772,101160.0,101150.0,0.66840614]
[1763052594254,0.00045112,101160.0,101150.0,0.66840614]
[1763052594469,0.00045112,101160.0,101150.0,0.59114614]
[1763052594470,0.19815772,101160.0,101150.0,0.59114614]
[1763052594684,0.19815772,101160.0,101150.0,0.66840614]
[1763052594900,0.00045112,101160.0,101150.0,0.66840614]
[1763052595119,0.2475866,101160.0,101150.0,0.53762614]
[1763052595311,0.02,101160.0,101150.0,0.59214614]
[1763052595558,0.2177066,101160.0,101150.0,0.59214614]
[1763052595765,0.2177066,101160.0,101150.0,0.53862614]
[1763052595980,0.02,101160.0,101150.0,0.59114614]
[1763052596193,0.2564066,101160.0,101150.0,0.3399]
[1763052596426,0.3336366,101160.0,101150.0,0.3399]
[1763052596667,0.2564066,101160.0,101150.0,0.53762614]
[1763052596871,0.3346366,101160.0,101150.0,0.323]
[1763052597076,0.2574066,101160.0,101150.0,0.33811]
[1763052597283,0.02,101150.0,101140.0,0.52074554]
[1763052597489,0.02,101150.0,101140.0,0.59800554]
[1763052597717,0.02,101150.0,101140.0,0.65152554]
[1763052597942,0.021,101160.0,101150.0,0.19772614]
[1763052598150,0.021,101160.0,101150.0,0.34361614]
[1763052598372,0.001,101160.0,101150.0,1.17607342]
[1763052599040,0.07922511,101170.0,101160.0,0.1977066]
[1763052599251,0.07936494,101170.0,101160.0,0.3284866]
[1763052600526,0.08036494,101170.0,101160.0,0.3284866]
[1763052600752,0.278052,101170.0,101160.0,0.2512266]
[1763052601150,0.278052,101170.0,101160.0,0.6522966]
[1763052601151,0.00113983,101170.0,101160.0,0.6522966]
[1763052601355,0.00213983,101170.0,101160.0,1.16175388]
[1763052601831,0.00213983,101170.0,101160.0,0.6522966]
[1763052602000,0.00213983,101170.0,101160.0,1.16175388]
[1763052602368,0.00213983,101170.0,101160.0,0.6522966]
[1763052602576,0.00213983,101170.0,101160.0,1.16175388]
[1763052602783,0.00213983,101170.0,101160.0,0.6522966]
[1763052602984,0.00213983,101170.0,101160.0,1.16175388]
[1763052603203,0.21982689,101170.0,101160.0,0.6522966]
[1763052603403,0.24761689,101170.0,101160.0,0.5742266]
[1763052603604,0.1977066,101160.0,101150.0,0.29090614]
[1763052603787,0.02,101160.0,101150.0,0.61390614]
[1763052603988,0.02,101160.0,101150.0,0.66573614]
[1763052604436,0.02,101160.0,101150.0,0.53583614]
[1763052604437,0.2177066,101160.0,101150.0,0.53583614]
[1763052604825,0.2177066,101160.0,101150.0,0.26466614]
[1763052604826,0.02,101160.0,101150.0,0.26466614]
[1763052605034,0.2177066,101160.0,101150.0,0.58766614]
[1763052605456,0.2177066,101160.0,101150.0,0.33811]
[1763052607009,0.21774569,101140.0,101130.0,0.2999193]
[1763052607226,0.26683569,101140.0,101130.0,0.10215405]
[1763052607441,0.26683569,101140.0,101130.0,0.2999193]
[1763052607659,0.06909,101140.0,101130.0,0.6229193]
[1763052607882,0.02,101140.0,101130.0,0.4266793]
[1763052608108,0.1987066,101160.0,101150.0,0.19772614]
[1763052608382,0.2187066,101160.0,101150.0,0.32448614]
[1763052608596,0.2467966,101160.0,101140.0,0.52074569]
[1763052608777,0.2467966,101160.0,101140.0,0.59732569]
[1763052608778,0.21772614,101150.0,101140.0,0.59732569]
[1763052609020,0.02,101150.0,101140.0,0.59732569]
[1763052609229,0.02,101150.0,101140.0,0.64750569]
[1763052609661,0.37780614,101150.0,101130.0,0.81926484]
[1763052609865,0.02,101140.0,101130.0,0.70938756]
[1763052610299,0.02,101140.0,101130.0,1.26902484]
[1763052610511,0.02,101140.0,101130.0,0.75956756]
[1763052610957,0.02,101150.0,101140.0,0.1977308]
[1763052611165,0.35280529,101150.0,101140.0,0.1977308]
[1763052611371,0.15507915,101150.0,101140.0,0.1977308]
[1763052611800,0.40189529,101150.0,101130.0,0.71038756]
[1763052612022,0.29609569,101140.0,101130.0,0.07075405]
[1763052612266,0.21776525,101130.0,101120.0,0.07217464]
[1763052612485,0.98713168,101130.0,101120.0,0.00142059]
[1763052612936,0.19778481,101120.0,101110.0,0.07075405]
[1763052613168,0.20780437,101110.0,101100.0,0.07075405]
[1763052613393,0.97064249,101110.0,101100.0,0.07075405]
[1763052613572,0.97064249,101110.0,101100.0,0.00013988]
[1763052614041,0.33005437,101110.0,101100.0,0.00013988]
[1763052614264,1.06881164,101110.0,101100.0,0.00013988]
[1763052614477,1.167295,101110.0,101100.0,0.00013988]
[1763052614692,1.168295,101110.0,101100.0,0.00013988]
[1763052614904,0.52770688,101110.0,101100.0,0.00013988]
[1763052615136,1.168295,101110.0,101100.0,0.00013988]
[1763052615361,0.52770688,101110.0,101100.0,0.00013988]
[1763052615575,0.52870688,101110.0,101100.0,0.00013988]
[1763052615789,0.43022352,101110.0,101100.0,0.00013988]
[1763052616475,1.07081164,101110.0,101100.0,0.00013988]
[1763052616694,0.43022352,101110.0,101100.0,0.00013988]
[1763052618011,0.10016915,101110.0,101100.0,0.24814381]
[1763052618233,0.31797352,101110.0,101100.0,0.07089393]
[1763052618448,1.12289756,101110.0,101100.0,0.00013988]
[1763052618662,1.13289756,101110.0,101100.0,0.00013988]
[1763052619095,1.13289756,101110.0,101100.0,0.00064255]
[1763052619310,0.49230944,101110.0,101100.0,0.00064255]
[1763052619524,0.44073352,101110.0,101100.0,0.00064255]
[1763052620389,1.08132164,101110.0,101100.0,0.00064255]
[1763052620601,0.44073352,101110.0,101100.0,0.00064255]
[1763052622309,1.08132164,101110.0,101100.0,0.00064255]
[1763052623516,0.44073352,101110.0,101100.0,0.00064255]
[1763052624174,0.44073352,101110.0,101100.0,0.19846648]
[1763052624390,0.36690352,101110.0,101100.0,0.00064255]
[1763052624619,0.24292915,101110.0,101100.0,0.19846648]
[1763052624829,0.12016915,101110.0,101100.0,0.24864648]
[1763052625250,0.12016915,101110.0,101100.0,0.32522648]
[1763052625499,0.31797352,101110.0,101100.0,0.32522648]
[1763052625711,0.36706352,101110.0,101100.0,0.00064255]
[1763052625929,0.44073352,101110.0,101100.0,0.00064255]
[1763052626189,0.44073352,101110.0,101100.0,0.19846648]
[1763052626396,0.022,101110.0,101100.0,0.32522648]
[1763052626615,0.21980437,101110.0,101100.0,0.19846648]
[1763052626840,0.022,101110.0,101100.0,0.00064255]
[1763052627050,0.26889437,101110.0,101100.0,0.00064255]
[1763052627264,0.39659961,101110.0,101100.0,0.00064255]
[1763052627746,0.49476876,101110.0,101100.0,0.00064255]
[1763052630327,1.13535688,101110.0,101100.0,0.00064255]
[1763052630756,0.49476876,101110.0,101100.0,0.00064255]
[1763052630969,1.13535688,101110.0,101100.0,0.00064255]
[1763052633066,0.44073352,101110.0,101100.0,0.00064255]
[1763052633287,1.08132164,101110.0,101100.0,0.00064255]
[1763052634386,0.44073352,101110.0,101100.0,0.00064255]
[1763052634595,0.42073352,101110.0,101100.0,0.00064255]
[1763052634803,0.44073352,101110.0,101100.0,0.00064255]
[1763052635010,0.53921688,101110.0,101100.0,0.00064255]
[1763052635949,1.179805,101110.0,101100.0,0.00064255]
[1763052636377,0.53921688,101110.0,101100.0,0.00064255]
[1763052636621,1.179805,101110.0,101100.0,0.00064255]
[1763052636804,1.502805,101110.0,101100.0,0.00064255]
[1763052637055,1.53252493,101110.0,101100.0,0.00064255]
[1763052637450,1.57594367,101110.0,101100.0,0.00064255]
[1763052637880,1.57394367,101110.0,101100.0,0.00064255]
[1763052638097,1.57394367,101110.0,101100.0,1e-08]
[1763052638310,0.19790223,101060.0,101050.0,0.24640965]
[1763052638528,0.19790223,101060.0,101050.0,0.24687632]
[1763052638734,0.19788265,101070.0,101050.0,0.24687632]
[1763052638735,0.19788265,101070.0,101060.0,0.19790223]
[1763052638944,0.31594495,101080.0,101060.0,0.32587223]
[1763052639162,0.30594495,101080.0,101060.0,0.32587223]
[1763052639362,0.32594495,101080.0,101070.0,0.19788265]
[1763052639802,0.36535495,101080.0,101070.0,0.19788265]
[1763052640000,0.41884495,101080.0,101060.0,0.27432223]
[1763052640215,0.02,101070.0,101060.0,0.19790223]
[1763052640677,0.02,101070.0,101060.0,0.24945223]
[1763052640895,0.021,101070.0,101060.0,0.24945223]
[1763052641552,0.001,101070.0,101060.0,1.28946035]
[1763052641977,0.001,101070.0,101060.0,1.33287909]
[1763052642395,0.002,101070.0,101060.0,1.33287909]
[1763052642842,0.001,101070.0,101060.0,1.33287909]
[1763052643703,0.02,101090.0,101080.0,0.52086307]
[1763052643914,0.02,101090.0,101080.0,0.57241307]
[1763052644796,0.02,101090.0,101080.0,0.64883307]
[1763052645242,0.02,101090.0,101080.0,0.57241307]
[1763052645472,0.02,101090.0,101070.0,0.323]
[1763052645473,0.21786307,101080.0,101070.0,0.323]
[1763052645701,0.22371307,101080.0,101070.0,0.323]
[1763052645909,0.29755307,101080.0,101060.0,0.35349734]
[1763052646122,0.02,101070.0,101060.0,0.35349734]
[1763052646348,0.02,101070.0,101060.0,0.42991734]
[1763052646563,0.21786308,101080.0,101070.0,0.19788265]
[1763052646846,0.02,101080.0,101070.0,0.24943265]
[1763052647066,0.02,101080.0,101070.0,0.32585265]
[1763052647289,0.11816915,101090.0,101080.0,0.19786307]
[1763052647523,0.001,101090.0,101080.0,1.28942119]
[1763052647748,0.001,101090.0,101080.0,0.64883307]
[1763052647958,0.21782407,101100.0,101090.0,0.1978435]
[1763052648832,0.07029,101100.0,101090.0,0.1978435]
[1763052649063,0.02,101100.0,101090.0,0.2352235]
[1763052649301,0.02,101100.0,101090.0,0.36366017]
[1763052649520,0.3159745,101110.0,101090.0,0.36366017]
[1763052649755,0.3159745,101110.0,101090.0,0.68666017]
[1763052649756,0.3898145,101110.0,101090.0,0.68666017]
[1763052649976,0.3698145,101110.0,101090.0,0.68666017]
[1763052650202,0.02,101100.0,101090.0,0.68666017]
[1763052650891,0.21782393,101100.0,101090.0,0.61024017]
[1763052651108,0.21982393,101100.0,101090.0,0.68666017]
[1763052651317,0.19982393,101100.0,101090.0,0.61024017]
[1763052651548,0.21782393,101100.0,101090.0,0.61024017]
[1763052651781,1.03645695,101100.0,101090.0,0.00046667]
[1763052652675,0.39586883,101100.0,101090.0,0.00046667]
[1763052652902,0.34395393,101100.0,101090.0,0.00046667]
[1763052653406,0.98654205,101100.0,101090.0,0.00046667]
[1763052654936,0.98654205,101100.0,101090.0,0.00071805]
[1763052655713,1.00499306,101100.0,101090.0,0.00071805]
[1763052656173,1.00499306,101100.0,101050.0,0.323]
[1763052656174,0.00989315,101080.0,101050.0,0.323]
[1763052656392,0.35393138,101060.0,101050.0,0.52091844]
[1763052656605,0.38755138,101060.0,101050.0,0.52091844]
[1763052656811,0.02,101060.0,101050.0,0.57246844]
[1763052657028,0.02,101060.0,101050.0,0.64888844]
[1763052657455,0.2820816,101080.0,101060.0,0.19788625]
[1763052657675,0.3160518,101070.0,101060.0,0.24943625]
[1763052657882,0.3160518,101070.0,101060.0,0.32585625]
[1763052658098,0.11816915,101070.0,101060.0,0.32585625]
[1763052659185,0.11916915,101070.0,101060.0,0.32585625]
[1763052660106,0.13802915,101070.0,101060.0,0.24943625]
[1763052660353,0.021,101070.0,101060.0,0.64996625]
[1763052660575,0.021,101070.0,101060.0,0.64998223]
[1763052660576,0.001,101070.0,101060.0,0.64998223]
[1763052660812,0.021,101070.0,101060.0,0.64998223]
[1763052661028,0.001,101070.0,101060.0,1.29057035]
[1763052661241,0.02082,101070.0,101060.0,0.57245223]
[1763052661455,0.001,101070.0,101060.0,1.29057035]
[1763052661884,0.001,101070.0,101060.0,1.5070244]
[1763052662316,0.0004658,101080.0,101070.0,0.52088265]
[1763052662548,0.0004658,101080.0,101070.0,0.67800265]
[1763052663230,0.0004658,101080.0,101070.0,1.57846356]
[1763052663436,0.0004658,101080.0,101070.0,0.82370265]
[1763052663685,0.0204658,101080.0,101070.0,0.82370265]
[1763052663899,0.0004658,101080.0,101070.0,1.53504482]
[1763052664112,0.0004658,101080.0,101070.0,1.57846356]
[1763052664324,0.0004658,101080.0,101070.0,1.57946356]
[1763052664536,0.0004658,101080.0,101070.0,1.58046356]
[1763052665009,0.0004658,101080.0,101070.0,1.58086069]
[1763052665643,0.0004658,101080.0,101070.0,1.59852701]
[1763052670400,0.02,101110.0,101070.0,1.55099616]
[1763052670623,0.20774569,101140.0,101120.0,0.00988924]
[1763052670851,0.01013827,101140.0,101130.0,0.0838]
[1763052671070,0.01013827,101140.0,101130.0,0.67449525]
[1763052671285,0.01013827,101140.0,101130.0,0.6835909]
[1763052671524,0.00013827,101140.0,101130.0,0.67449525]
[1763052672206,0.00013827,101140.0,101130.0,1.31508337]
[1763052672422,0.00013827,101140.0,101130.0,1.35850211]
[1763052673079,0.00013827,101140.0,101130.0,1.22663697]
[1763052673301,0.00013827,101140.0,101130.0,1.23666119]
[1763052673514,0.21768711,101170.0,101160.0,0.5207066]
[1763052673725,0.21768711,101170.0,101160.0,0.5692066]
[1763052673726,0.21773366,101170.0,101160.0,0.5692066]
[1763052673959,0.0200466,101170.0,101160.0,0.6391366]
[1763052674187,0.21773366,101170.0,101160.0,0.44143]
[1763052674394,0.21773366,101170.0,101160.0,0.6391366]
[1763052674627,0.0200466,101170.0,101160.0,0.6391366]
[1763052675058,4.66e-05,101170.0,101160.0,0.6391366]
[1763052675312,0.0020466,101170.0,101160.0,1.14785958]
[1763052675768,0.0020466,101170.0,101160.0,0.6391366]
[1763052675983,0.0030466,101170.0,101160.0,1.14785958]
[1763052676197,0.0025488,101170.0,101160.0,1.14785958]
[1763052676433,0.0005488,101170.0,101160.0,1.14785958]
[1763052676682,0.19823586,101170.0,101160.0,0.44243]
[1763052676904,0.19823586,101170.0,101160.0,0.3725]
[1763052676905,0.21823586,101170.0,101160.0,0.3725]
[1763052677355,0.35173231,101170.0,101160.0,0.324]
[1763052677576,0.36644586,101170.0,101160.0,0.324]
[1763052677824,0.29295586,101170.0,101160.0,0.324]
[1763052678050,0.36644586,101170.0,101160.0,0.001]
[1763052678276,0.39167435,101170.0,101160.0,0.001]
[1763052678503,0.2177066,101160.0,101150.0,0.35445]
[1763052678731,0.19772614,101150.0,101130.0,0.24295351]
[1763052678953,0.21772614,101150.0,101130.0,0.31288351]
[1763052679190,0.25351614,101150.0,101140.0,0.52074569]
[1763052679412,0.02,101150.0,101140.0,0.56924569]
[1763052679622,0.02,101150.0,101140.0,0.63917569]
[1763052680278,0.15395915,101160.0,101150.0,0.19772614]
[1763052680511,0.0200466,101170.0,101160.0,0.1977066]
[1763052680743,0.21773366,101170.0,101160.0,0.0485]
[1763052680948,0.24468366,101170.0,101160.0,0.0485]
[1763052681131,0.24468366,101170.0,101160.0,0.2462066]
[1763052682034,0.0200466,101170.0,101160.0,0.6391366]
[1763052682507,0.0010466,101170.0,101160.0,1.14785958]
[1763052682737,0.02,101190.0,101180.0,0.60472752]
[1763052682962,0.19811395,101190.0,101180.0,0.60472752]
[1763052683186,0.19811395,101190.0,101180.0,0.67465752]
[1763052683414,0.21811395,101190.0,101180.0,0.60472752]
[1763052683637,0.00046597,101190.0,101180.0,0.67465752]
[1763052683856,0.00246597,101190.0,101180.0,1.1833805]
[1763052684350,0.00246597,101190.0,101180.0,0.67465752]
[1763052684826,0.00347017,101190.0,101180.0,0.67965752]
[1763052685975,0.36932815,101190.0,101180.0,0.005]
[1763052687271,0.29583815,101190.0,101180.0,0.20266752]
[1763052687487,0.02347017,101190.0,101180.0,0.32109752]
[1763052687693,0.00347017,101190.0,101180.0,0.64409752]
[1763052689641,0.00347017,101190.0,101180.0,1.19623924]
[1763052690512,0.00347017,101190.0,101180.0,1.1528205]
[1763052691166,0.00347017,101190.0,101180.0,0.64409752]
[1763052691387,0.24711815,101190.0,101180.0,0.3765]
[1763052691605,0.24711815,101190.0,101180.0,0.328]
[1763052691900,0.04947017,101190.0,101180.0,0.57202752]
[1763052692120,0.02347017,101190.0,101180.0,0.64414752]
[1763052692345,0.00347017,101190.0,101180.0,1.1528705]
[1763052692560,0.00347017,101190.0,101180.0,1.19628924]
[1763052693641,0.00147017,101190.0,101180.0,1.19628924]
[1763052696401,0.04726017,101190.0,101180.0,0.52666752]
[1763052696614,0.00247017,101190.0,101180.0,0.64514752]
[1763052697290,0.33645815,101190.0,101180.0,0.329]
[1763052698220,0.06861017,101190.0,101180.0,0.52666752]
[1763052698449,0.00247017,101190.0,101180.0,1.1538705]
[1763052698864,0.00247017,101190.0,101180.0,0.64514752]
[1763052699094,0.00247017,101190.0,101180.0,1.1538705]
[1763052699308,0.00247017,101190.0,101180.0,1.19728924]
[1763052703730,0.00037053,101190.0,101180.0,1.19728924]
[1763052703946,0.00020053,101190.0,101180.0,1.19728924]
[1763052704176,0.33723688,101230.0,101210.0,0.60178893]
[1763052704403,0.39707223,101230.0,101210.0,0.60178893]
[1763052704659,0.39707223,101230.0,101220.0,0.1975894]
[1763052705729,0.39807223,101230.0,101220.0,0.1975894]
[1763052705977,0.44421223,101230.0,101220.0,0.1975894]
[1763052706191,0.44621223,101230.0,101220.0,0.1975894]
[1763052706405,0.44721223,101230.0,101210.0,0.62754893]
[1763052706835,0.44721223,101230.0,101220.0,0.1975894]
[1763052707521,0.02472948,101230.0,101220.0,0.82479238]
[1763052707766,0.02472948,101230.0,101220.0,1.14779238]
[1763052708042,0.02672948,101230.0,101220.0,1.14779238]
[1763052708635,0.22229937,101230.0,101220.0,0.5669494]
[1763052708875,0.22329937,101230.0,101220.0,0.5669494]
[1763052709321,0.22129937,101230.0,101220.0,0.6390694]
[1763052709535,0.22229937,101230.0,101220.0,0.44148]
[1763052709742,0.39432846,101230.0,101220.0,0.328]
[1763052710398,0.45351638,101230.0,101220.0,0.005]
[1763052710610,0.49350123,101230.0,101220.0,0.005]
[1763052711031,1.00222421,101230.0,101220.0,0.005]
[1763052711274,1.02253592,101230.0,101220.0,0.005]
[1763052711482,1.02453592,101230.0,101220.0,0.005]
[1763052712574,1.00322421,101230.0,101220.0,0.005]
[1763052714064,0.42430123,101230.0,101220.0,0.005]
[1763052714300,1.04869993,101230.0,101220.0,0.005]
[1763052714519,1.00080825,101230.0,101220.0,0.005]
[1763052718385,1.36722699,101230.0,101220.0,0.005]
[1763052718592,0.85850401,101230.0,101220.0,1e-08]
[1763052718805,1.36722699,101230.0,101220.0,1e-08]
[1763052719020,1.46571035,101230.0,101220.0,1e-08]
[1763052720068,0.81508527,101230.0,101220.0,1e-08]
[1763052720345,1.32380825,101230.0,101220.0,1e-08]
[1763052720560,1.37522698,101230.0,101220.0,1e-08]
[1763052720774,1.38922697,101230.0,101220.0,1e-08]
[1763052720990,1.37922698,101230.0,101220.0,1e-08]
[1763052721200,0.21752754,101200.0,101190.0,0.20753027]
[1763052721420,0.01989909,101200.0,101190.0,0.20753027]
[1763052721653,0.10816915,101220.0,101210.0,0.19760893]
[1763052721866,0.11806824,101220.0,101210.0,0.19760893]
[1763052722076,0.31565764,101220.0,101210.0,0.19760893]
[1763052722297,0.31565764,101220.0,101200.0,0.86513657]
[1763052722298,0.19760893,101210.0,101200.0,0.05328514]
[1763052722522,0.19962845,101200.0,101190.0,0.37628514]
[1763052722745,0.3572076,101200.0,101190.0,0.37628514]
[1763052722982,0.19764798,101190.0,101180.0,0.05328514]
[1763052723205,0.89957152,101190.0,101180.0,0.05328514]
[1763052724138,0.19766752,101180.0,101170.0,0.05328514]
[1763052724362,0.89800874,101180.0,101170.0,0.07155438]
[1763052724585,0.94779874,101180.0,101170.0,0.05378342]
[1763052724812,0.41917667,101180.0,101170.0,0.07155438]
[1763052725026,1.01499244,101180.0,101170.0,0.07155438]
[1763052725462,0.94779874,101180.0,101170.0,0.00046597]
[1763052725700,0.43907576,101180.0,101170.0,0.07155438]
[1763052725926,0.94979874,101180.0,101170.0,0.07155438]
[1763052726140,0.94979874,101180.0,101170.0,0.05378064]
[1763052726353,1.0482821,101180.0,101170.0,0.05378064]
[1763052728117,0.53955912,101180.0,101170.0,0.05378064]
[1763052728334,1.0482821,101180.0,101170.0,0.05378064]
[1763052728553,1.0482821,101180.0,101170.0,0.00046597]
[1763052729838,1.09170084,101180.0,101170.0,0.00046597]
[1763052730731,1.08970084,101180.0,101170.0,0.00046597]
[1763052730957,0.95079874,101180.0,101170.0,0.00046597]
[1763052731175,0.99521748,101180.0,101170.0,0.00046597]
[1763052732328,1.00521747,101180.0,101170.0,0.00046597]
[1763052732602,1.02370502,101180.0,101170.0,0.00046597]
[1763052732826,1.10370083,101180.0,101170.0,0.00046597]
[1763052733316,0.70644912,101150.0,101140.0,0.323]
[1763052733549,0.74788912,101150.0,101140.0,0.32313976]
[1763052733771,0.81837912,101150.0,101140.0,0.32313976]
[1763052734402,0.30965614,101150.0,101140.0,0.32313976]
[1763052734621,0.91854827,101150.0,101140.0,0.32313976]
[1763052734833,0.50930865,101150.0,101140.0,0.00013976]
[1763052735045,1.14958866,101150.0,101140.0,0.00013976]
[1763052736783,1.52600739,101150.0,101140.0,0.00013976]
[1763052737419,0.88572738,101150.0,101140.0,0.00013976]
[1763052737646,0.40782529,101150.0,101140.0,0.00013976]
[1763052737840,0.41972438,101150.0,101140.0,0.00013976]
[1763052738074,0.42072438,101150.0,101140.0,0.00013976]
[1763052738731,1.06100439,101150.0,101140.0,0.00013976]
[1763052738937,1.15948775,101150.0,101140.0,0.00013976]
[1763052739172,1.1830074,101150.0,101140.0,0.00013976]
[1763052739410,1.20290649,101150.0,101140.0,0.00013976]
[1763052739636,1.15948775,101150.0,101140.0,0.00013976]
[1763052739857,0.42072438,101150.0,101140.0,0.00013976]
[1763052740078,1.06100439,101150.0,101140.0,0.00013976]
[1763052742276,0.46414312,101150.0,101140.0,0.00013976]
[1763052742486,0.85794435,101130.0,101120.0,0.00217397]
[1763052743631,1.18877686,101130.0,101120.0,0.00222057]
[1763052743844,0.54849685,101130.0,101120.0,0.00222057]
[1763052744057,1.18877686,101130.0,101120.0,0.00222057]
[1763052744278,1.18877686,101130.0,101100.0,0.323]
[1763052744496,0.21772302,101100.0,101080.0,0.07108841]
[1763052744718,0.1978435,101090.0,101070.0,0.30196873]
[1763052744928,0.32258259,101090.0,101080.0,0.00013827]
[1763052745143,0.2321935,101090.0,101080.0,0.00013827]
[1763052745359,0.28190143,101090.0,101080.0,0.00013827]
[1763052745570,1.02277156,101090.0,101080.0,0.00013827]
[1763052745782,1.09326156,101090.0,101080.0,0.00013827]
[1763052746241,1.08354018,101090.0,101080.0,0.00313827]
[1763052746449,0.44326017,101090.0,101080.0,0.00013827]
[1763052746672,1.09354017,101090.0,101080.0,0.00013827]
[1763052746896,0.45426016,101090.0,101080.0,0.00013827]
[1763052747153,0.85806175,101070.0,101060.0,0.0004]
[1763052747369,1.02174511,101070.0,101060.0,0.0008658]